bitfinex/quotes_ETHUSD_20250908
["timestamp","ask_amount","ask_price","bid_price","bid_amount"]
[1757291658430,4.4300919,4312.2,4312.1,0.00200001]
[1757291659487,4.0007919,4312.2,4312.1,0.00200001]
[1757291659692,6.03009,4312.2,4312.1,0.00200001]
[1757291659914,8.3490919,4312.2,4312.1,0.00200001]
[1757291660995,8.48540853,4312.2,4312.1,0.00200001]
[1757291664309,4.18370663,4312.2,4312.1,0.00200001]
[1757291664514,4.05331663,4312.2,4312.1,0.00200001]
[1757291664833,4.84531663,4312.2,4312.1,0.00200001]
[1757291665812,0.92831663,4312.2,4312.1,0.00200001]
[1757291666008,4.84531663,4312.2,4312.1,0.30560001]
[1757291666866,4.84531663,4312.2,4312.1,0.00200001]
[1757291668045,4.05331663,4312.2,4312.1,0.30560001]
[1757291668234,0.13631663,4312.2,4312.1,3.57445569]
[1757291668413,4.05331663,4312.2,4312.1,1.25540001]
[1757291668610,0.13631663,4312.2,4312.1,6.57445569]
[1757291669014,0.13631663,4312.2,4312.1,7.27074321]
[1757291671661,1e-08,4312.2,4312.1,7.27074321]
[1757291674387,1e-08,4312.2,4312.1,7.38594321]
[1757291674686,1e-08,4312.2,4312.1,6.92104321]
[1757291674843,1e-08,4312.2,4312.1,6.32094321]
[1757291675664,1e-08,4312.2,4312.1,7.27074321]
[1757291675975,1e-08,4312.2,4312.1,6.32094321]
[1757291676585,1e-08,4312.2,4312.1,7.27074321]
[1757291677188,1e-08,4312.2,4312.1,7.38594321]
[1757291680879,1e-08,4312.2,4312.1,10.35614321]
[1757291681682,1e-08,4312.2,4312.1,11.30594321]
[1757291681886,0.28820001,4312.2,4312.1,0.69828753]
[1757291682193,0.28820001,4312.2,4312.1,2.32105569]
[1757291683398,0.72200001,4312.2,4312.1,0.00200001]
[1757291683598,1.20720001,4312.2,4312.1,0.00200001]
[1757291683757,1.20720001,4312.2,4312.1,2.32105569]
[1757291684161,0.72200001,4312.2,4312.1,2.32105569]
[1757291684857,1.20720001,4312.2,4312.1,0.00200001]
[1757291686934,1e-08,4312.2,4312.1,2.32105569]
[1757291687229,1e-08,4312.2,4312.1,2.62465569]
[1757291688303,1e-08,4312.2,4312.1,5.62465569]
[1757291688504,1e-08,4312.2,4312.1,6.57445569]
[1757291689295,1e-08,4312.2,4312.1,6.68965569]
[1757291690531,0.28820001,4312.2,4312.1,6.01729795]
[1757291690731,1e-08,4312.2,4312.1,6.32089795]
[1757291691234,0.00100001,4312.2,4312.1,6.32089795]
[1757291691535,0.28920001,4312.2,4312.1,6.01729795]
[1757291691709,0.72300001,4312.2,4312.1,5.32105569]
[1757291692034,1.20820001,4312.2,4312.1,0.00200001]
[1757291692244,1.32902001,4312.2,4312.1,0.00200001]
[1757291692552,2.12102001,4312.2,4312.1,0.00200001]
[1757291693314,4.44002191,4312.2,4312.1,0.00200001]
[1757291693618,8.35902191,4312.2,4312.1,0.00200001]
[1757291694813,6.04002001,4312.2,4312.1,0.00200001]
[1757291696350,8.35902191,4312.2,4312.1,0.00200001]
[1757291700663,6.04002001,4312.2,4312.1,0.00200001]
[1757291700957,6.04002001,4312.2,4312.1,0.29660001]
[1757291700958,0.00100001,4312.2,4312.1,0.29660001]
[1757291701115,3.91800001,4312.2,4312.1,2.61565569]
[1757291701526,3.91800001,4312.2,4312.1,0.29660001]
[1757291702132,3.91800001,4312.2,4312.1,3.58575569]
[1757291702332,3.91800001,4312.2,4312.1,2.61565569]
[1757291704574,8.61560191,4312.2,4312.1,0.00200001]
[1757291706373,12.46021792,4312.2,4312.1,0.00200001]
[1757291706536,16.30386919,4312.2,4312.1,0.00200001]
[1757291708777,12.38686919,4312.2,4312.1,0.00200001]
[1757291708984,16.30386919,4312.2,4312.1,0.00200001]
[1757291709166,15.67633005,4312.2,4312.1,0.00200001]
[1757291709370,15.46021792,4312.2,4312.1,0.00200001]
[1757291710083,10.76631792,4312.2,4312.1,0.00200001]
[1757291710580,11.55831792,4312.2,4312.1,0.00200001]
[1757291713903,9.23931602,4312.2,4312.1,0.00200001]
[1757291714203,11.55831792,4312.2,4312.1,0.00200001]
[1757291714913,3.84561602,4312.2,4312.1,0.29660001]
[1757291715069,0.00100001,4312.2,4312.1,1.26670001]
[1757291715266,3.91800001,4312.2,4312.1,1.26670001]
[1757291715471,3.91800001,4312.2,4312.1,0.29660001]
[1757291715703,3.91800001,4312.2,4312.1,0.00200001]
[1757291716212,3.91800001,4312.2,4312.1,0.29660001]
[1757291716707,3.91800001,4312.2,4312.1,0.76960001]
[1757291717203,3.91800001,4312.2,4312.1,0.29660001]
[1757291717405,4.21090001,4312.2,4312.1,0.00200001]
[1757291717567,5.00290001,4312.2,4312.1,0.00200001]
[1757291718682,7.32190191,4312.2,4312.1,0.00200001]
[1757291718910,9.18788513,4312.2,4312.1,0.00200001]
[1757291720183,9.40409365,4312.2,4312.1,0.00200001]
[1757291720388,9.18788513,4312.2,4312.1,0.00200001]
[1757291720589,9.90231298,4312.2,4312.1,0.00200001]
[1757291721206,9.53381919,4312.2,4312.1,0.00200001]
[1757291721515,9.90232827,4312.2,4312.1,0.00200001]
[1757291721710,5.08342827,4312.2,4312.1,0.00200001]
[1757291721911,7.02900191,4312.2,4312.1,0.00200001]
[1757291723406,7.32190191,4312.2,4312.1,0.00200001]
[1757291724831,8.21920191,4312.2,4312.1,0.00200001]
[1757291724995,9.06377211,4312.2,4312.1,0.00200001]
[1757291727026,3.11116324,4311.9,4311.8,0.02481514]
[1757291727372,8.40988594,4311.9,4311.8,0.02481514]
[1757291727499,6.8441227,4311.9,4311.8,0.02481514]
[1757291727703,8.72138594,4311.9,4311.8,0.02481514]
[1757291727917,9.16328594,4311.9,4311.8,0.02481514]
[1757291728116,9.61868594,4311.9,4311.8,0.02481514]
[1757291729419,10.46312921,4311.9,4311.8,0.02481514]
[1757291731362,13.46312921,4311.9,4311.8,1e-08]
[1757291731934,13.46312921,4311.9,4311.8,43.49257259]
[1757291732134,13.46312921,4311.9,4311.8,29.84717856]
[1757291734073,17.30774522,4311.9,4311.8,29.84717856]
[1757291734843,11.38994522,4311.9,4311.8,29.84717856]
[1757291735043,15.61944522,4311.9,4311.8,29.84717856]
[1757291735444,16.41144522,4311.9,4311.8,29.84717856]
[1757291736048,16.85334522,4311.9,4311.8,29.84717856]
[1757291736234,16.85334522,4311.9,4311.6,0.002]
[1757291736235,3.11127082,4311.7,4311.6,0.002]
[1757291736437,14.63074674,4311.7,4311.6,0.002]
[1757291736652,15.1291117,4311.7,4311.6,0.002]
[1757291737051,18.4406117,4311.7,4311.6,0.002]
[1757291737254,27.3499117,4311.7,4311.6,0.002]
[1757291742396,26.8945117,4311.7,4311.6,0.002]
[1757291742574,23.6981117,4311.7,4311.6,0.002]
[1757291742983,19.9091117,4311.7,4311.6,0.2985]
[1757291743150,19.06466843,4311.7,4311.6,0.2985]
[1757291743347,19.85666843,4311.7,4311.6,0.2985]
[1757291743549,19.85666843,4311.7,4311.6,0.7695]
[1757291743999,15.22005242,4311.7,4311.6,0.7504]
[1757291744285,16.01205242,4311.7,4311.6,0.2985]
[1757291746185,16.22841216,4311.7,4311.6,0.2985]
[1757291746384,16.01205242,4311.7,4311.6,0.2985]
[1757291748156,16.85745692,4311.7,4311.6,0.2985]
[1757291748668,20.70207293,4311.7,4311.6,0.2985]
[1757291749083,20.70207293,4311.7,4311.6,0.002]
[1757291749247,21.01357293,4311.7,4311.6,0.002]
[1757291749449,21.45547293,4311.7,4311.6,0.002]
[1757291749851,21.91087293,4311.7,4311.6,0.002]
[1757291750090,24.91087293,4311.7,4311.6,0.002]
[1757291754001,24.91094876,4311.7,4311.6,0.002]
[1757291756292,24.45554876,4311.7,4311.6,0.002]
[1757291756499,24.01364876,4311.7,4311.6,0.002]
[1757291757108,24.45734876,4311.7,4311.6,0.002]
[1757291757287,24.93164876,4311.7,4311.6,0.002]
[1757291759075,27.37464876,4311.7,4311.6,0.002]
[1757291760274,26.90079526,4311.7,4311.6,0.002]
[1757291761385,27.37509526,4311.7,4311.6,0.002]
[1757291762410,26.90079526,4311.7,4311.6,0.002]
[1757291762830,27.37509526,4311.7,4311.6,0.002]
[1757291763932,26.89779526,4311.7,4311.6,0.002]
[1757291766760,26.45409526,4311.7,4311.6,0.002]
[1757291767428,27.37209526,4311.7,4311.6,0.002]
[1757291767963,27.49327483,4311.7,4311.6,0.002]
[1757291768535,27.49422632,4311.7,4311.6,0.002]
[1757291770025,27.01992632,4311.7,4311.6,0.002]
[1757291773268,27.49422632,4311.7,4311.6,0.002]
[1757291773453,27.6669041,4311.7,4311.6,0.002]
[1757291773826,28.90698186,4311.7,4311.6,0.002]
[1757291777080,28.43268186,4311.7,4311.6,0.002]
[1757291777399,2.31986266,4310.6,4310.3,0.4913]
[1757291777555,2.31986266,4310.6,4310.1,0.4881]
[1757291777556,3.11170122,4310.9,4310.8,0.4913]
[1757291777742,12.65894079,4310.9,4310.8,1.09313749]
[1757291778879,12.65894079,4310.9,4310.8,0.3046]
[1757291779097,12.65894079,4310.9,4310.1,0.02]
[1757291779098,3.11207795,4310.2,4310.1,0.02]
[1757291779391,7.03007795,4310.2,4310.1,0.02]
[1757291779569,7.53013291,4310.2,4310.1,0.3246]
[1757291779764,7.53013291,4310.2,4310.1,1.284]
[1757291780139,7.03007795,4310.2,4310.1,1.284]
[1757291782748,7.96508649,4310.2,4310.1,0.02]
[1757291782971,8.81304833,4310.2,4310.1,0.022]
[1757291784406,12.11364833,4310.2,4310.1,0.022]
[1757291788410,12.1134911,4310.2,4310.1,0.022]
[1757291789266,11.8128911,4310.2,4310.1,0.332]
[1757291789724,3.16788256,4310.2,4310.1,0.7999]
[1757291789931,6.23807795,4310.2,4310.1,1.2608]
[1757291790500,7.03007795,4310.2,4310.1,1.2608]
[1757291792323,7.03007795,4310.2,4310.1,0.332]
[1757291792483,8.52228284,4310.2,4310.1,0.022]
[1757291792828,9.02241434,4310.2,4310.1,0.022]
[1757291793323,9.32301434,4310.2,4310.1,0.022]
[1757291793528,9.67035935,4310.2,4310.1,0.022]
[1757291793726,5.10441434,4310.2,4310.1,1.2608]
[1757291793890,7.03007795,4310.2,4310.1,1.2608]
[1757291794288,3.11207795,4310.2,4310.1,1.2608]
[1757291794488,7.03007795,4310.2,4310.1,1.2608]
[1757291795000,7.03007795,4310.2,4310.1,0.332]
[1757291795591,7.53032014,4310.2,4310.1,0.332]
[1757291795922,9.07255031,4310.2,4310.1,0.332]
[1757291796438,9.07255031,4310.2,4310.1,0.022]
[1757291797146,12.72060127,4310.2,4310.1,0.022]
[1757291801139,13.20450127,4310.2,4310.1,0.022]
[1757291801700,13.65180127,4310.2,4310.1,0.022]
[1757291802742,13.65196135,4310.2,4310.1,0.022]
[1757291803635,13.20466135,4310.2,4310.1,0.022]
[1757291803802,12.42016135,4310.2,4310.1,0.022]
[1757291804201,12.72076135,4310.2,4310.1,0.022]
[1757291805035,12.42016135,4310.2,4310.1,0.332]
[1757291805235,16.26477736,4310.2,4310.1,0.7929]
[1757291805438,16.26477736,4310.2,4310.1,0.332]
[1757291806028,13.26477736,4310.2,4310.1,0.332]
[1757291806226,8.60946976,4310.2,4310.1,1.2608]
[1757291806427,8.55361601,4310.2,4310.1,1.2608]
[1757291806807,5.572,4310.3,4310.1,1.2608]
[1757291807001,1.782,4310.9,4310.2,6.97551951]
[1757291807002,0.50058459,4310.8,4310.2,6.97551951]
[1757291807206,3.917,4310.7,4310.6,4.65544193]
[1757291807404,0.1152,4310.6,4310.3,4.65544193]
[1757291807650,3.917,4310.5,4310.3,4.65544193]
[1757291807953,3.917,4310.5,4310.4,0.31]
[1757291808153,3.917,4310.5,4310.4,3.5587703]
[1757291810944,3.917,4310.5,4310.4,1.2388]
[1757291811146,4.709,4310.5,4310.4,1.2388]
[1757291814359,0.9072,4310.4,4310.1,0.022]
[1757291814563,3.11207795,4310.2,4310.1,0.022]
[1757291814774,3.40777795,4310.2,4310.1,0.022]
[1757291815067,0.792,4310.2,4310.1,1.2583]
[1757291815632,3.11207795,4310.2,4310.1,1.2583]
[1757291816035,4.708,4310.2,4310.1,1.2583]
[1757291820486,4.708,4310.2,4310.1,0.7857]
[1757291820694,3.916,4310.2,4310.1,5.91374193]
[1757291821598,3.916,4310.2,4310.1,1.2583]
[1757291821807,3.916,4310.2,4310.1,0.7923]
[1757291822479,7.02807795,4310.2,4310.1,0.3197]
[1757291822677,8.25858406,4310.2,4310.1,0.022]
[1757291823067,8.71178406,4310.2,4310.1,0.022]
[1757291823567,9.18288406,4310.2,4310.1,0.022]
[1757291823897,8.25858406,4310.2,4310.1,0.022]
[1757291824094,4.708,4310.2,4310.1,0.7923]
[1757291824456,7.02807795,4310.2,4310.1,0.7923]
[1757291825074,4.708,4310.2,4310.1,0.3197]
[1757291825270,4.708,4310.2,4310.1,1.2583]
[1757291825471,0.001,4310.8,4310.1,1.2583]
[1757291825670,0.001,4310.8,4310.7,4.65544193]
[1757291825887,3.917,4310.8,4310.7,6.97525077]
[1757291826092,3.917,4310.8,4310.7,8.21155077]
[1757291827497,3.917,4310.8,4310.7,11.21155077]
[1757291828503,3.917,4310.8,4310.7,6.55610884]
[1757291831281,3.917,4310.8,4310.7,7.25264531]
[1757291831603,3.917,4310.8,4310.7,3.99423647]
[1757291831780,3.917,4310.8,4310.3,0.1152]
[1757291831781,4.2127,4310.8,4310.3,0.4726]
[1757291832286,3.917,4310.8,4310.5,2.31991177]
[1757291832462,3.917,4310.8,4310.7,0.2977]
[1757291833584,3.917,4310.8,4310.4,2.79253033]
[1757291833585,3.917,4310.8,4310.4,0.4726]
[1757291833785,3.917,4310.8,4310.4,2.79255983]
[1757291834192,3.917,4310.8,4310.7,0.2977]
[1757291835422,3.917,4310.8,4310.7,3.09010884]
[1757291835713,3.917,4310.8,4310.7,3.55610884]
[1757291838114,3.917,4310.8,4310.7,6.55610884]
[1757291838413,3.917,4310.8,4310.7,7.25265017]
[1757291839117,0.001,4310.8,4310.7,7.25265017]
[1757291839276,3.915,4310.8,4310.7,7.25265017]
[1757291839476,0.001,4310.8,4310.7,7.25265017]
[1757291840196,0.001,4311.3,4311.2,2.3195398]
[1757291840371,0.001,4311.3,4311.2,2.34273519]
[1757291840572,0.001,4311.7,4311.6,2.31932461]
[1757291841005,0.001,4311.7,4311.6,6.55562461]
[1757291841583,0.001,4311.7,4311.6,7.10362461]
[1757291841789,0.001,4311.7,4311.6,7.21882461]
[1757291844233,0.001,4311.7,4311.6,19.12027646]
[1757291844728,0.001,4311.9,4311.7,5.31927082]
[1757291844891,0.001,4311.9,4311.7,5.78577082]
[1757291845217,0.001,4311.9,4311.7,6.54087082]
[1757291845581,1e-08,4311.9,4311.8,2.31921703]
[1757291845785,1e-08,4311.9,4311.8,6.40478426]
[1757291845983,1e-08,4311.9,4311.8,10.74318426]
[1757291849405,3.291,4312.6,4311.8,10.74318426]
[1757291849406,0.001,4312.6,4312.1,2.31905568]
[1757291849728,0.4835,4313.8,4313.0,2.31857175]
[1757291849729,0.026,4313.8,4313.0,2.31857175]
[1757291849889,0.026,4313.8,4313.3,2.43361049]
[1757291850091,0.026,4313.8,4313.3,9.65581049]
[1757291850291,0.026,4313.8,4313.3,10.56721049]
[1757291851660,0.026,4313.8,4313.7,2.31819551]
[1757291851839,0.021,4313.9,4313.8,2.31814177]
[1757291852027,0.025,4314.8,4314.2,5.31792684]
[1757291852028,1.854,4314.8,4314.2,5.31792684]
[1757291852555,1.854,4314.8,4314.2,5.62812684]
[1757291852859,1.854,4314.8,4314.2,5.74332684]
[1757291853654,1.854,4314.8,4314.2,6.43923479]
[1757291858875,0.2969,4314.3,4314.2,3.81110795]
[1757291859015,1.1989,4314.3,4314.2,2.31792684]
[1757291859362,1.1989,4314.3,4314.1,3.01396521]
[1757291859665,0.2969,4314.3,4314.2,2.31792684]
[1757291860023,0.2969,4314.3,4314.2,5.31792684]
[1757291860335,1.1989,4314.3,4314.2,5.31792684]
[1757291862366,1.1989,4314.3,4314.2,3.0]
[1757291862572,1.1989,4314.3,4314.1,0.69599675]
[1757291862715,1.1989,4314.3,4314.0,2.31799785]
[1757291862716,0.902,4314.2,4314.0,2.31799785]
[1757291862921,1.1979,4314.1,4313.2,3.0]
[1757291863120,5.1069,4314.1,4313.8,2.3181372]
[1757291863336,0.902,4314.0,4313.9,3.0]
[1757291863560,0.902,4314.0,4313.7,0.69599675]
[1757291863561,2.31809298,4313.9,4312.9,2.31862551]
[1757291863724,0.2959,4313.0,4312.9,2.31862551]
[1757291864059,0.2959,4313.0,4312.9,6.01478376]
[1757291864267,0.2959,4313.0,4312.9,3.01478376]
[1757291864565,1.1979,4313.0,4312.9,3.01478376]
[1757291864764,1.1979,4313.0,4312.8,2.34366355]
[1757291864765,1.1979,4313.0,4312.8,0.025]
[1757291864935,0.4575,4312.9,4312.8,0.025]
[1757291865356,1.1979,4312.9,4312.8,0.025]
[1757291866285,1.1979,4312.9,4312.8,2.34367928]
[1757291866574,1.1979,4312.9,4312.8,0.025]
[1757291869476,1.1979,4312.9,4312.8,0.025]
[1757291869633,1.31769,4312.9,4312.8,0.025]
[1757291870671,1.1979,4312.9,4312.8,0.025]
[1757291871274,4.30852551,4312.9,4312.8,0.025]
[1757291871650,4.30852551,4312.9,4312.8,0.027]
[1757291872968,8.21752551,4312.9,4312.8,0.027]
[1757291877056,8.16752551,4312.9,4312.8,0.027]
[1757291877252,9.23142429,4312.9,4312.8,0.027]
[1757291877693,9.18142429,4312.9,4312.8,0.027]
[1757291881314,0.15290866,4313.2,4312.8,0.317]
[1757291881466,0.15290866,4313.2,4312.9,0.96838625]
[1757291881671,0.15290866,4313.2,4313.1,2.608518]
[1757291881871,4.06190866,4313.2,4313.1,2.608518]
[1757291882103,4.06190866,4313.2,4313.1,3.553718]
[1757291882606,4.17710866,4313.2,4313.1,4.24992795]
[1757291883103,4.47440866,4313.2,4313.1,0.69620995]
[1757291883312,4.47440866,4313.2,4312.8,5.34567785]
[1757291883496,4.35920866,4313.2,4312.8,0.027]
[1757291884013,1.7166,4313.1,4312.8,0.027]
[1757291884377,1.2516,4313.1,4312.8,0.027]
[1757291884579,0.2973,4312.9,4312.8,0.027]
[1757291884785,4.2063,4312.9,4312.8,0.027]
[1757291886104,3.909,4312.9,4312.8,0.027]
[1757291886312,3.909,4312.9,4312.8,2.63567928]
[1757291886471,3.909,4312.9,4312.8,0.317]
[1757291886666,3.909,4312.9,4312.8,2.63567928]
[1757291886872,3.909,4312.9,4312.8,3.58087928]
[1757291887591,3.909,4312.9,4312.8,0.317]
[1757291887793,3.909,4312.9,4312.8,2.63567928]
[1757291888303,3.909,4312.9,4312.8,3.58087928]
[1757291889170,3.909,4312.9,4312.8,2.63567928]
[1757291889381,3.909,4312.9,4312.8,3.08997928]
[1757291890312,3.91,4312.9,4312.8,3.08997928]
[1757291890713,3.91,4312.9,4312.8,3.58087928]
[1757291893195,3.91,4312.9,4312.8,2.63567928]
[1757291893686,3.91,4312.9,4312.8,3.58087928]
[1757291894995,3.91,4312.9,4312.8,0.317]
[1757291895208,5.54971087,4312.9,4312.8,0.027]
[1757291895811,4.62511087,4312.9,4312.8,0.027]
[1757291896114,4.2073,4312.9,4312.8,0.027]
[1757291900109,4.6669,4312.9,4312.8,0.027]
[1757291900341,8.24252551,4312.9,4312.8,0.027]
[1757291900839,4.702,4312.9,4312.8,0.027]
[1757291901333,4.702,4312.9,4312.8,0.317]
[1757291901701,3.91,4312.9,4312.8,0.317]
[1757291902123,3.91,4312.9,4312.8,0.027]
[1757291903158,4.2073,4312.9,4312.8,0.027]
[1757291903342,7.62602755,4312.9,4312.8,0.027]
[1757291903663,8.09612755,4312.9,4312.8,0.027]
[1757291904036,5.77750204,4312.9,4312.8,0.027]
[1757291904441,8.09612755,4312.9,4312.8,0.027]
[1757291904941,8.88812755,4312.9,4312.8,0.027]
[1757291905530,6.56950204,4312.9,4312.8,0.027]
[1757291906224,3.91,4312.9,4312.8,2.65607928]
[1757291906428,3.91,4312.9,4312.8,3.60137928]
[1757291907479,0.001,4312.9,4312.8,6.60137928]
[1757291907635,3.64,4312.9,4312.8,6.60137928]
[1757291908569,3.64,4312.9,4312.8,5.65607928]
[1757291908726,3.64,4312.9,4312.8,3.3374]
[1757291908933,3.64,4312.9,4312.8,5.65607928]
[1757291911174,3.64,4312.9,4312.8,2.34567928]
[1757291911175,3.9434,4312.9,4312.8,2.34567928]
[1757291911356,3.64,4312.9,4312.8,2.34567928]
[1757291911535,3.64,4312.9,4312.8,2.65607928]
[1757291911868,0.001,4312.9,4312.8,3.10147928]
[1757291912068,3.908,4312.9,4312.8,6.60137928]
[1757291912760,3.808,4312.9,4312.8,6.60137928]
[1757291918373,4.1114,4312.9,4312.8,5.34567928]
[1757291918573,3.808,4312.9,4312.8,6.60137928]
[1757291919049,0.02475928,4313.2,4313.0,2.31857175]
[1757291919253,0.02475928,4313.2,4313.1,2.34170318]
[1757291919464,0.02475928,4313.2,4313.1,6.574218]
[1757291919867,0.02475928,4313.2,4313.1,7.27027611]
[1757291920380,5.14125928,4313.2,4313.1,2.318518]
[1757291920794,5.14125928,4313.2,4313.1,5.628918]
[1757291920795,3.93175928,4313.2,4313.1,5.628918]
[1757291921077,4.23515928,4313.2,4313.1,5.318518]
[1757291921458,3.93175928,4313.2,4313.1,5.318518]
[1757291922099,1.781,4314.2,4313.2,5.31846424]
[1757291922259,0.02,4314.9,4314.7,2.31765823]
[1757291922462,0.02,4314.9,4314.7,9.28483481]
[1757291922681,0.436,4316.3,4314.7,9.28483481]
[1757291922682,0.1402,4315.8,4315.7,2.3171212]
[1757291923068,1e-08,4315.9,4315.8,5.31706751]
[1757291923396,1e-08,4315.9,4315.8,6.18868542]
[1757291923695,1e-08,4315.9,4315.8,10.44408542]
[1757291924297,1e-08,4315.9,4315.8,10.13306751]
[1757291924799,1e-08,4315.9,4315.8,10.20549306]
[1757291924961,1e-08,4315.9,4315.8,10.20649306]
[1757291925893,1e-08,4315.9,4315.8,10.20549306]
[1757291926195,1e-08,4315.9,4315.8,9.75909306]
[1757291927311,1e-08,4315.9,4315.8,10.20449306]
[1757291927492,1e-08,4315.9,4315.8,6.26049306]
[1757291927692,1e-08,4315.9,4315.8,10.20249306]
[1757291928789,0.025,4316.8,4316.6,2.31663809]
[1757291929130,0.025,4316.8,4316.7,5.31658442]
[1757291929289,0.025,4316.8,4316.7,6.18758442]
[1757291929497,0.025,4316.8,4316.7,6.26000404]
[1757291929902,0.025,4316.8,4316.7,6.25999901]
[1757291930435,0.025,4316.8,4316.7,6.84529901]
[1757291931429,0.025,4316.8,4316.7,10.33889901]
[1757291931729,0.025,4316.8,4316.7,10.78429901]
[1757291933448,0.025,4316.8,4316.7,10.33889901]
[1757291933612,0.8092,4316.8,4316.7,9.36678442]
[1757291933797,0.8092,4316.8,4316.7,2.43178442]
[1757291933998,0.8092,4316.8,4316.7,5.43178442]
[1757291934198,0.8092,4316.8,4316.7,2.31658442]
[1757291935632,0.025,4316.8,4316.7,2.31658442]
[1757291936037,0.5187,4316.8,4316.7,2.31658442]
[1757291936334,0.8092,4316.8,4316.7,2.31658442]
[1757291936703,1.2475,4316.8,4316.5,0.1152]
[1757291937003,0.1152,4316.5,4316.0,2.31690671]
[1757291937209,0.932,4316.4,4316.1,2.31690278]
[1757291937417,0.2905,4316.2,4316.1,2.31690278]
[1757291937646,0.7842,4316.2,4316.1,2.31690278]
[1757291938038,0.4937,4316.2,4316.1,2.31690278]
[1757291938626,1.2225,4316.2,4315.7,2.4323196]
[1757291938910,0.932,4316.1,4315.7,0.1152]
[1757291939152,0.932,4316.1,4316.0,2.31696014]
[1757291939351,1.2225,4316.1,4316.0,2.31696014]
[1757291939711,1.2225,4316.1,4315.5,2.31719791]
[1757291939940,0.932,4316.0,4315.5,2.31722045]
[1757291940146,0.1152,4315.7,4315.0,3.0]
[1757291940331,0.4937,4315.6,4315.5,2.31722662]
[1757291940510,0.7842,4315.6,4315.5,2.31722662]
[1757291940714,0.7842,4315.6,4315.1,2.31744307]
[1757291940914,0.932,4315.5,4314.9,4.0472]
[1757291941122,0.1152,4315.7,4314.9,2.31750724]
[1757291941123,0.932,4315.4,4314.9,2.31750724]
[1757291941365,0.1152,4315.2,4314.9,2.31755081]
[1757291941567,0.1152,4315.2,4315.1,0.2913]
[1757291941861,0.4937,4315.7,4315.5,2.31722375]
[1757291942058,0.1152,4315.8,4315.7,2.3171212]
[1757291942623,0.6089,4315.8,4315.6,2.31716896]
[1757291942947,0.6089,4315.8,4315.3,2.31729124]
[1757291943147,0.6089,4315.8,4315.7,2.3171212]
[1757291943352,0.8994,4315.8,4315.6,2.31716444]
[1757291943678,0.1152,4315.8,4315.7,2.3171212]
[1757291943964,0.001,4316.5,4316.2,2.31685278]
[1757291944526,0.001,4316.5,4316.1,2.31686419]
[1757291945231,0.7842,4316.2,4315.7,3.0]
[1757291945435,1.2225,4316.2,4314.9,0.002]
[1757291945796,1.52275,4316.2,4315.6,2.31716582]
[1757291945928,0.932,4316.1,4315.0,3.0]
[1757291946128,2.31705573,4315.9,4315.1,0.07244856]
[1757291946374,0.932,4315.8,4315.1,2.38988891]
[1757291946541,0.2905,4315.2,4315.1,2.31744035]
[1757291946731,0.2905,4315.2,4315.1,2.38989217]
[1757291946933,0.2905,4315.2,4315.1,2.31744035]
[1757291947157,0.4937,4315.7,4315.3,2.31728255]
[1757291947675,0.932,4315.6,4315.4,0.07245154]
[1757291947852,0.2905,4315.5,4315.0,0.07245154]
[1757291948052,0.4937,4315.4,4315.1,2.31739196]
[1757291948253,0.4937,4315.4,4315.2,2.31738969]
[1757291948254,0.4937,4315.3,4315.2,2.31738969]
[1757291948474,3.926,4316.0,4315.2,3.7203]
[1757291948950,3.926,4316.0,4315.8,2.31702713]
[1757291949151,0.7842,4315.9,4315.8,2.31702713]
[1757291949369,0.7842,4315.9,4315.8,2.31706751]
[1757291949765,3.926,4316.0,4315.9,2.31701383]
[1757291950076,2.2727,4316.3,4316.2,2.31685278]
[1757291950483,1.779,4316.3,4316.2,2.60815278]
[1757291950978,1.779,4316.3,4316.2,5.60815278]
[1757291951184,1.779,4316.3,4316.2,6.03715278]
[1757291951883,3.924,4316.4,4316.3,5.31679911]
[1757291952108,3.924,4316.4,4316.3,5.74579911]
[1757291952307,3.924,4316.4,4316.3,6.03709911]
[1757291952606,0.001,4316.5,4316.4,2.31674543]
[1757291953108,0.001,4316.5,4316.4,5.60804543]
[1757291953504,0.001,4316.5,4316.4,17.9085914]
[1757291953907,0.7852,4316.5,4316.4,5.31674543]
[1757291955109,0.001,4316.5,4316.4,5.60804543]
[1757291955283,0.001,4316.5,4316.4,6.15224543]
[1757291956306,0.001,4316.5,4316.4,18.0237914]
[1757291956816,0.04975335,4316.8,4316.7,2.31658442]
[1757291957010,0.04975335,4316.8,4316.7,21.10813039]
[1757291957222,0.02,4316.9,4316.8,2.31653076]
[1757291957621,0.02,4316.9,4316.8,3.03683076]
[1757291958326,0.02,4316.9,4316.8,6.03683076]
[1757291959220,0.8042,4316.9,4316.8,9.23453076]
[1757291959418,0.5137,4316.9,4316.8,5.31653076]
[1757291959791,0.02,4316.9,4316.8,5.31653076]
[1757291960914,0.02,4316.9,4316.8,5.60783076]
[1757291961121,0.3105,4316.9,4316.8,5.31653076]
[1757291961421,1.2425,4316.9,4316.8,5.31653076]
[1757291962202,0.8042,4316.9,4316.8,5.31653076]
[1757291962595,1.2425,4316.9,4316.8,3.0]
[1757291962894,1.3577,4316.9,4316.8,5.31653076]
[1757291963641,0.02,4316.9,4316.8,5.31653076]
[1757291963996,0.02,4316.9,4316.8,5.61793076]
[1757291964412,0.02,4316.9,4316.8,5.31653076]
[1757291964624,1.2573,4316.9,4316.8,3.0]
[1757291964941,0.5199,4316.9,4316.8,5.31653076]
[1757291965243,0.8288,4316.9,4316.8,5.31653076]
[1757291966712,1.2573,4316.9,4316.8,5.31653076]
[1757291967661,0.8288,4316.9,4316.8,5.31653076]
[1757291967877,0.02,4316.9,4316.8,5.61793076]
[1757291968169,0.02,4316.9,4316.8,6.06663076]
[1757291969034,0.02,4316.9,4316.8,5.61793076]
[1757291969438,0.02,4316.9,4316.8,5.31653076]
[1757291969838,1.2573,4316.9,4316.8,3.0]
[1757291970034,1.2573,4316.9,4315.8,0.025]
[1757291970035,0.1152,4316.8,4316.2,2.31683689]